bitfinex-derivatives/quotes_SOLF0:USTF0_20241206
["timestamp","ask_amount","ask_price","bid_price","bid_amount"]
[1733517120289,10.05010238,239.37,239.27,2.0855]
[1733517120488,2.0853,239.3,239.25,4.2657]
[1733517120689,2.0853,239.3,239.25,2.0857]
[1733517121090,2.0853,239.3,239.26,2.0856]
[1733517122796,2.18,239.35,239.23,2.18]
[1733517122991,10.05010238,239.34,239.21,2.18]
[1733517123300,10.05010238,239.31,239.19,4.9014]
[1733517123492,2.18,239.3,239.19,1.3826]
[1733517123688,2.0858,239.25,239.19,1.3826]
[1733517123894,2.0858,239.25,239.17,10.05010238]
[1733517123895,2.18,239.3,239.17,10.05010238]
[1733517124096,2.18,239.3,239.16,2.18]
[1733517124394,2.18,239.3,239.19,2.0863]
[1733517124395,2.0859,239.23,239.19,2.0863]
[1733517125196,10.05010238,239.28,239.14,10.05010238]
[1733517125398,2.0862,239.2,239.15,2.0865]
[1733517125694,2.18,239.25,239.14,2.18]
[1733517125899,2.086,239.22,239.18,2.0863]
[1733517126693,2.0859,239.24,239.14,12.23010238]
[1733517126894,10.05010238,239.28,239.14,2.18]
[1733517127294,10.05010238,239.28,239.14,12.23010238]
[1733517127900,2.0859,239.23,239.19,2.0862]
[1733517128798,2.0859,239.23,239.16,2.0865]
[1733517129004,2.0859,239.23,239.14,12.23010238]
[1733517129898,1.3843,239.33,239.17,10.05010238]
[1733517130100,3.5643,239.33,239.2,10.05010238]
[1733517130405,3.5643,239.33,239.2,12.23010238]
[1733517130994,1.3843,239.33,239.2,12.23010238]
[1733517131199,1.3843,239.33,239.23,10.05010238]
[1733517131399,2.2,239.36,239.23,10.05010238]
[1733517131599,2.2,239.36,239.24,1.3961]
[1733517131898,3.6024,239.39,239.26,10.05010238]
[1733517132600,2.0847,239.38,239.33,2.085]
[1733517134495,2.0845,239.39,239.33,2.085]
[1733517134898,2.6082,239.41,239.33,2.085]
[1733517136007,2.6082,239.41,239.3,2.2]
[1733517136411,2.6082,239.41,239.31,10.05010238]
[1733517136807,2.6082,239.41,239.3,2.2]
[1733517136808,4.6926,239.41,239.35,2.0848]
[1733517137102,2.6082,239.41,239.3,2.2]
[1733517137307,2.0844,239.4,239.34,2.0849]
[1733517138107,2.0844,239.4,239.35,2.0849]
[1733517139412,2.2,239.45,239.35,2.0849]
[1733517139413,1.3993,239.48,239.35,2.2]
[1733517139606,1.3993,239.48,239.36,1.04356177]
[1733517139803,2.084,239.45,239.38,2.0845]
[1733517140006,2.084,239.45,239.35,2.2]
[1733517140305,2.084,239.45,239.36,1.04342764]
[1733517140609,2.084,239.45,239.37,1.04342764]
[1733517140913,1.3993,239.48,239.35,2.2]
[1733517140914,2.0841,239.44,239.35,2.2]
[1733517141211,2.0841,239.44,239.36,1.0433923]
[1733517141406,10.05010238,239.46,239.37,1.0433923]
[1733517141605,10.05010238,239.46,239.35,2.2]
[1733517142003,1.3993,239.48,239.36,10.05010238]
[1733517142312,10.05010238,239.49,239.37,1.04341924]
[1733517142514,2.084,239.46,239.4,2.0844]
[1733517142808,2.084,239.46,239.36,10.05010238]
[1733517143015,2.084,239.46,239.37,1.04338104]
[1733517143210,2.0838,239.48,239.42,2.0842]
[1733517143714,1.09698,239.5,239.36,11.35090238]
[1733517143911,2.0838,239.47,239.37,1.0432479]
[1733517144115,2.0838,239.47,239.36,11.35090238]
[1733517144312,2.0838,239.47,239.37,1.04324672]
[1733517144510,2.0838,239.47,239.38,1.04324672]
[1733517144713,2.0838,239.47,239.36,11.35090238]
[1733517144909,2.0838,239.47,239.37,1.04322948]
[1733517145110,2.0837,239.49,239.43,2.0841]
[1733517145412,2.0837,239.49,239.4,2.2]
[1733517146017,1.09698,239.5,239.4,2.2]
[1733517146214,1.09698,239.5,239.43,2.0842]
[1733517147013,2.0838,239.48,239.43,2.0842]
[1733517148015,2.0838,239.48,239.39,10.05010238]
[1733517148419,2.0838,239.48,239.42,2.0842]
[1733517149742,2.0838,239.47,239.42,2.0842]
[1733517150332,2.0841,239.45,239.4,2.0843]
[1733517150538,10.05010238,239.49,239.37,2.2]
[1733517150845,2.0843,239.42,239.37,4.2847]
[1733517152551,2.2,239.42,239.3,10.05010238]
[1733517152760,2.2,239.42,239.28,1.3299]
[1733517152949,2.0849,239.35,239.3,2.0853]
[1733517154064,2.085,239.34,239.29,2.0853]
[1733517154246,3.6062,239.42,239.24,11.42930238]
[1733517154247,10.05010238,239.4,239.24,11.42930238]
[1733517154454,10.05010238,239.4,239.25,2.2]
[1733517155447,2.0852,239.32,239.27,2.0856]
[1733517157454,2.0852,239.32,239.28,2.0854]
[1733517157655,2.085,239.33,239.25,2.2]
[1733517158349,2.085,239.33,239.29,2.0854]
[1733517158542,2.0849,239.36,239.3,10.05010238]
[1733517158736,1.3659,239.41,239.3,10.05010238]
[1733517158737,3.5659,239.41,239.33,2.085]
[1733517158934,2.2,239.46,239.33,10.05010238]
[1733517159142,2.0839,239.47,239.39,10.05010238]
[1733517159440,2.6451,239.51,239.39,12.25010238]
[1733517159634,12.69520238,239.51,239.39,2.2]
[1733517159842,2.0842,239.43,239.39,2.2]
[1733517160425,2.0842,239.43,239.39,4.2845]
[1733517160734,2.0843,239.42,239.39,2.2]
[1733517162534,2.0842,239.43,239.39,2.2]
[1733517163437,2.0843,239.42,239.37,2.0847]
[1733517163735,10.05010238,239.48,239.33,12.23010238]
[1733517164236,2.0841,239.44,239.36,10.05010238]
[1733517165631,2.0841,239.44,239.39,2.0845]
[1733517176553,2.0841,239.44,239.39,8.50881762]
[1733517177352,2.0842,239.43,239.39,8.50881762]
[1733517177751,2.0842,239.43,239.41,6.42431762]
[1733517178143,2.0842,239.43,239.39,8.50881762]
[1733517186958,2.18,239.5,239.41,6.42431762]
[1733517187260,9.06941762,239.51,239.43,6.42431762]
[1733517187963,2.0838,239.48,239.43,6.42431762]
[1733517188363,2.0838,239.47,239.43,8.50841762]
[1733517192663,2.0839,239.46,239.43,6.42431762]
[1733517196967,2.0839,239.46,239.43,8.50841762]
[1733517197566,2.084,239.46,239.43,6.42431762]
[1733517200170,2.0842,239.43,239.4,2.0844]
[1733517200371,6.42431762,239.47,239.39,6.42431762]
[1733517201670,6.42431762,239.45,239.36,6.42431762]
[1733517202075,2.0845,239.4,239.36,8.50911762]
[1733517202569,6.42431762,239.45,239.36,6.42431762]
[1733517203169,6.42431762,239.41,239.33,6.42431762]
[1733517203870,2.0849,239.36,239.33,6.42431762]
[1733517204072,6.42431762,239.41,239.33,6.42431762]
[1733517205173,2.0849,239.36,239.33,6.42431762]
[1733517205562,6.42431762,239.41,239.33,6.42431762]
[1733517205967,2.18,239.42,239.28,2.0854]
[1733517205968,2.0853,239.32,239.28,2.0854]
[1733517206167,6.42431762,239.35,239.27,6.42431762]
[1733517206575,6.42431762,239.31,239.17,0.51473259]
[1733517206770,6.42431762,239.31,239.06,89.80194867]
[1733517206771,6.42431762,239.33,239.25,6.42431762]
[1733517206962,1.3599,239.34,239.27,6.42431762]
[1733517207167,2.0853,239.31,239.27,6.42431762]
[1733517207667,2.663,239.4,239.29,6.42431762]
[1733517207668,2.18,239.38,239.29,6.42431762]
[1733517207869,6.42431762,239.39,239.32,6.42431762]
[1733517208971,2.0848,239.37,239.32,6.42431762]
[1733517209272,2.0848,239.37,239.34,6.42431762]
[1733517209469,4.843,239.4,239.34,6.42431762]
[1733517210875,6.42431762,239.39,239.32,6.42431762]
[1733517211069,6.42431762,239.39,239.3,6.42431762]
[1733517212073,6.42431762,239.37,239.3,6.42431762]
[1733517213679,2.0851,239.34,239.3,6.42431762]
[1733517214173,6.42431762,239.37,239.29,2.18]
[1733517214376,2.0851,239.34,239.29,2.18]
[1733517214575,6.42431762,239.39,239.3,6.42431762]
[1733517215674,2.0851,239.34,239.3,6.42431762]
[1733517217773,2.0847,239.37,239.32,6.42431762]
[1733517217977,4.843,239.4,239.32,6.42431762]
[1733517219481,2.0847,239.38,239.33,2.0851]
[1733517220178,7.72341762,239.4,239.32,6.42431762]
[1733517220382,6.42431762,239.38,239.29,6.42431762]
[1733517221771,2.0851,239.34,239.29,8.50971762]
[1733517221974,2.0851,239.34,239.31,6.42431762]
[1733517222175,7.72341762,239.4,239.31,6.42431762]
[1733517222375,1.2991,239.4,239.33,8.50941762]
[1733517222980,2.0847,239.37,239.33,8.50941762]
[1733517227183,4.0392,239.46,239.29,2.18]
[1733517227184,2.18,239.44,239.37,2.0847]
[1733517227386,2.18,239.44,239.35,6.42431762]
[1733517227587,6.42431762,239.43,239.35,6.42431762]
[1733517227885,2.0845,239.4,239.35,8.50921762]
[1733517228086,2.0845,239.4,239.35,6.42431762]
[1733517229587,2.0845,239.4,239.37,6.42431762]
[1733517230287,2.0845,239.4,239.36,2.0848]
[1733517231782,6.42431762,239.45,239.37,8.50901762]
[1733517231783,2.0844,239.42,239.37,8.50901762]
[1733517231988,6.42431762,239.45,239.37,8.50901762]
[1733517233688,2.0844,239.41,239.37,8.50901762]
[1733517236194,2.0844,239.41,239.36,2.0848]
[1733517236495,2.0844,239.41,239.36,8.50911762]
[1733517237293,2.0846,239.41,239.37,2.0848]
[1733517238392,2.0846,239.4,239.36,8.50931762]
[1733517238992,2.18,239.46,239.38,6.42431762]
[1733517239194,9.08931762,239.49,239.4,6.42431762]
[1733517239590,9.08931762,239.49,239.42,2.0844]
[1733517239591,2.0842,239.46,239.42,2.0844]
[1733517241087,2.0843,239.44,239.4,10.68891762]
[1733517244407,2.0843,239.44,239.41,2.0846]
[1733517244704,2.0843,239.44,239.4,8.60431762]
[1733517245103,2.0843,239.44,239.41,2.0845]
[1733517245302,2.0842,239.45,239.41,2.0845]
[1733517245599,2.0842,239.45,239.4,8.60431762]
[1733517246397,9.08931762,239.49,239.4,8.60431762]
[1733517246609,2.0841,239.46,239.42,2.0845]
[1733517247605,2.0842,239.45,239.41,2.0845]
[1733517248202,6.42431762,239.43,239.35,3.5169]
[1733517248409,6.42431762,239.41,239.35,2.18]
[1733517248610,2.18,239.46,239.37,6.42431762]
[1733517248800,6.42431762,239.43,239.35,10.68931762]
[1733517249608,2.0848,239.39,239.35,10.68931762]
[1733517249908,2.0848,239.39,239.35,8.60431762]
[1733517251605,2.0848,239.39,239.35,2.18]
[1733517251912,2.0848,239.39,239.35,4.265]
[1733517252715,2.0848,239.38,239.35,2.18]
[1733517254514,2.085,239.36,239.33,8.50951762]
[1733517255213,6.42431762,239.39,239.3,2.18]
[1733517255417,6.42431762,239.39,239.31,6.42431762]
[1733517255807,8.60431762,239.41,239.33,6.42431762]
[1733517256008,2.18,239.41,239.33,6.42431762]
[1733517256615,2.0847,239.39,239.35,2.0851]
[1733517264717,6.42431762,239.44,239.35,2.0851]
[1733517265026,6.42431762,239.48,239.4,6.42431762]
[1733517265323,2.665,239.49,239.42,6.42431762]
[1733517265822,2.084,239.47,239.42,8.50871762]
[1733517269423,6.42431762,239.47,239.38,6.42431762]
[1733517269618,6.42431762,239.45,239.38,6.42431762]
[1733517269923,2.0847,239.4,239.36,6.42431762]
[1733517270119,2.0847,239.4,239.35,2.0851]
[1733517272224,6.42431762,239.43,239.33,4.2652]
[1733517272225,2.0848,239.39,239.33,4.2652]
[1733517272423,2.0848,239.39,239.34,6.42431762]
[1733517272828,2.0848,239.38,239.34,6.42431762]
[1733517274122,2.0848,239.38,239.36,6.42431762]
[1733517274520,2.0848,239.38,239.34,8.50951762]
[1733517275328,2.0848,239.38,239.36,6.42431762]
[1733517282530,6.42431762,239.4,239.32,6.42431762]
[1733517282735,6.42431762,239.4,239.31,8.60431762]
[1733517283136,6.42431762,239.4,239.31,8.50961762]
[1733517283435,2.665,239.49,239.31,6.42431762]
[1733517283436,6.42431762,239.38,239.31,6.42431762]
[1733517283834,2.0853,239.33,239.3,2.0855]
[1733517284137,2.18,239.4,239.28,6.42431762]
[1733517284138,6.42431762,239.36,239.28,6.42431762]
[1733517284338,2.0852,239.34,239.28,6.42431762]
[1733517284640,6.42431762,239.34,239.28,6.42431762]
[1733517285738,2.0855,239.31,239.28,6.42431762]
[1733517292043,6.42431762,239.34,239.28,6.42431762]
[1733517293251,2.0854,239.32,239.28,6.42431762]
[1733517293943,2.0854,239.32,239.28,8.51001762]
[1733517294650,6.42431762,239.33,239.26,6.42431762]
[1733517294846,2.0854,239.31,239.26,6.42431762]
[1733517295745,2.0854,239.31,239.27,2.0858]
[1733517295946,2.0854,239.31,239.26,6.42431762]
[1733517296347,2.0854,239.31,239.27,2.0858]
[1733517297044,2.0854,239.31,239.28,6.42431762]
[1733517297347,6.42431762,239.35,239.28,6.42431762]
[1733517297544,2.0853,239.33,239.3,6.42431762]
[1733517297739,6.42431762,239.35,239.28,6.42431762]
[1733517298544,2.0853,239.33,239.28,8.50991762]
[1733517299452,2.0853,239.33,239.29,2.0856]
[1733517300746,2.0851,239.35,239.32,6.42431762]
[1733517300952,6.42431762,239.37,239.3,6.42431762]
[1733517301550,6.42431762,239.35,239.28,6.42431762]
[1733517302754,2.0853,239.33,239.28,8.50991762]
[1733517306149,6.42431762,239.37,239.28,6.42431762]
[1733517306346,6.42431762,239.37,239.3,8.50981762]
[1733517307651,2.0851,239.35,239.3,8.50981762]
[1733517308358,2.0851,239.35,239.31,2.0854]
[1733517309344,2.6834,239.39,239.32,6.42431762]
[1733517309551,6.42431762,239.43,239.36,6.42431762]
[1733517310154,2.0846,239.41,239.36,6.42431762]
[1733517310353,6.42431762,239.43,239.36,6.42431762]
[1733517311054,2.0846,239.41,239.36,6.42431762]
[1733517311257,2.0846,239.41,239.36,8.50931762]
[1733517311456,7.83651762,239.45,239.36,6.42431762]
[1733517312556,6.42431762,239.48,239.4,6.42431762]
[1733517313765,6.42431762,239.46,239.36,2.18]
[1733517314059,6.42431762,239.46,239.39,6.42431762]
[1733517314258,2.6005,239.49,239.41,6.42431762]
[1733517314558,6.42431762,239.46,239.41,2.18]
[1733517315259,2.0843,239.44,239.41,2.18]
[1733517316554,2.0847,239.4,239.36,2.085]
[1733517317565,2.0846,239.41,239.36,2.085]
[1733517317858,6.42431762,239.44,239.36,2.085]
[1733517318548,2.0846,239.41,239.36,2.085]
[1733517318958,6.42431762,239.44,239.36,2.085]
[1733517319155,2.0846,239.4,239.36,2.085]
[1733517321056,6.42431762,239.44,239.35,8.60431762]
[1733517321460,6.42431762,239.42,239.35,8.60431762]
[1733517321657,2.085,239.37,239.33,6.42431762]
[1733517321862,6.42431762,239.38,239.31,3.4816]
[1733517322056,6.42431762,239.38,239.23,1.3036]
[1733517322360,6.42431762,239.36,239.29,8.50981762]
[1733517322561,6.42431762,239.36,239.29,6.42431762]
[1733517323454,2.0852,239.34,239.3,2.0855]
[1733517323659,2.18,239.43,239.31,6.42431762]
[1733517323866,6.42431762,239.4,239.33,6.42431762]
[1733517324561,2.0848,239.38,239.33,6.42431762]
[1733517324757,6.42431762,239.4,239.33,6.42431762]
[1733517324953,2.18,239.43,239.33,6.42431762]
[1733517325158,2.0849,239.38,239.33,6.42431762]
[1733517325459,1.4122,239.47,239.35,2.085]
[1733517325766,2.0847,239.4,239.35,6.42431762]
[1733517326664,2.0846,239.41,239.36,2.085]
[1733517326964,2.0846,239.41,239.37,6.42431762]
[1733517327762,2.0846,239.41,239.37,8.50921762]
[1733517329259,6.42431762,239.45,239.37,8.50921762]
[1733517329460,2.0845,239.42,239.37,6.42431762]
[1733517329664,2.0845,239.42,239.38,2.0848]
[1733517330058,6.42431762,239.45,239.38,2.0848]
[1733517330259,2.0844,239.43,239.38,2.0848]
[1733517332059,6.42431762,239.45,239.38,2.0848]
[1733517332362,2.0845,239.42,239.38,2.0848]
[1733517332760,2.0846,239.41,239.36,2.0849]
[1733517332958,2.0846,239.41,239.36,6.42431762]
[1733517333160,6.42431762,239.43,239.36,6.42431762]
[1733517333363,2.0845,239.42,239.37,2.0848]
[1733517335164,6.42431762,239.45,239.37,2.0848]
[1733517335364,2.0846,239.41,239.37,2.0848]
[1733517335864,2.0845,239.42,239.38,2.0848]
[1733517338370,2.0846,239.41,239.37,2.0849]
[1733517340279,2.0849,239.37,239.33,2.0852]
[1733517341080,2.0849,239.37,239.34,8.50941762]
[1733517342385,2.0849,239.37,239.34,2.0851]
[1733517342579,2.0849,239.37,239.34,8.50941762]
[1733517345982,2.0849,239.37,239.34,6.42431762]
[1733517348086,2.085,239.36,239.34,6.42431762]
[1733517348584,2.0849,239.37,239.34,6.42431762]
[1733517349686,6.42431762,239.42,239.34,6.42431762]
[1733517349989,6.42431762,239.44,239.34,6.42431762]
[1733517350184,2.18,239.46,239.36,6.42431762]
[1733517350185,2.0848,239.39,239.36,6.42431762]
[1733517350384,1.4122,239.47,239.36,6.42431762]
[1733517350385,8.60431762,239.45,239.36,6.42431762]
[1733517350991,8.60431762,239.45,239.36,8.50931762]
[1733517351884,2.0847,239.4,239.36,6.42431762]
[1733517353991,2.0847,239.4,239.38,6.42431762]
[1733517354284,2.0844,239.43,239.36,6.42431762]
[1733517354484,8.60431762,239.45,239.36,6.42431762]
[1733517355095,2.0848,239.39,239.36,6.42431762]
[1733517357088,2.085,239.36,239.34,6.42431762]
[1733517357291,2.085,239.36,239.32,2.0853]
[1733517357292,6.42431762,239.41,239.32,8.50961762]
[1733517358696,6.42431762,239.39,239.32,2.0853]
[1733517358892,6.42431762,239.33,239.16,0.50610738]
[1733517359093,6.42431762,239.33,239.2,6.42431762]
[1733517359094,6.42431762,239.28,239.2,6.42431762]
[1733517360197,6.42431762,239.28,239.2,8.60431762]
[1733517360696,2.086,239.25,239.2,10.69071762]
[1733517360898,6.42431762,239.28,239.2,8.60431762]
[1733517361097,2.0859,239.26,239.22,6.42431762]
[1733517361493,6.42431762,239.32,239.22,6.42431762]
[1733517361698,4.1866,239.38,239.26,6.42431762]
[1733517361899,6.42431762,239.36,239.28,6.42431762]
[1733517362100,2.18,239.37,239.28,6.42431762]
[1733517362393,6.42431762,239.36,239.28,6.42431762]
[1733517362599,2.0854,239.32,239.28,6.42431762]
[1733517364996,2.0852,239.35,239.3,8.50981762]
[1733517367099,2.085,239.37,239.32,2.0853]
[1733517367403,2.085,239.37,239.32,8.50961762]
[1733517369000,2.085,239.37,239.32,6.42431762]
[1733517369196,1.3249,239.44,239.34,6.42431762]
[1733517369197,2.0847,239.39,239.34,6.42431762]
[1733517369500,8.60431762,239.43,239.34,6.42431762]
[1733517369694,6.42431762,239.43,239.36,6.42431762]
[1733517370499,2.18,239.46,239.36,6.42431762]
[1733517370803,6.42431762,239.45,239.36,8.60431762]
[1733517371397,2.0845,239.42,239.37,2.0849]
[1733517372802,2.0845,239.42,239.38,6.42431762]
[1733517373001,2.0846,239.41,239.38,6.42431762]
[1733517373706,6.42431762,239.44,239.36,8.60431762]
[1733517374705,2.0848,239.39,239.36,8.60431762]
[1733517375901,2.0848,239.39,239.36,2.18]
[1733517376205,2.0848,239.38,239.35,6.42431762]
[1733517377407,2.0847,239.39,239.35,6.42431762]
[1733517378009,2.0847,239.39,239.35,8.50941762]
[1733517379505,2.0847,239.39,239.32,3.5449]
[1733517379506,2.18,239.46,239.37,6.42431762]
[1733517379810,2.18,239.46,239.37,8.50911762]
[1733517379811,6.42431762,239.45,239.37,8.50911762]
[1733517380310,2.0845,239.42,239.37,8.50911762]
[1733517380605,2.0845,239.42,239.39,6.42431762]
[1733517381711,2.0843,239.44,239.39,6.42431762]
[1733517382017,6.42431762,239.47,239.39,6.42431762]
[1733517383608,6.42431762,239.47,239.32,1.3849]
[1733517383609,6.42431762,239.42,239.32,1.3849]
[1733517383812,6.42431762,239.42,239.34,6.42431762]
[1733517384009,2.16,239.45,239.34,6.42431762]
[1733517384210,2.0848,239.39,239.34,8.50951762]
[1733517385009,2.0848,239.38,239.34,8.50951762]
[1733517385909,2.0848,239.38,239.34,6.42431762]
[1733517391316,2.0849,239.37,239.34,6.42431762]
[1733517392314,2.0852,239.34,239.32,3.5449]
[1733517395315,2.16,239.45,239.33,6.42431762]
[1733517395617,6.42431762,239.43,239.33,6.42431762]
[1733517395923,2.085,239.37,239.33,6.42431762]
[1733517396123,2.085,239.37,239.33,8.50951762]
[1733517396916,6.42431762,239.42,239.34,2.0851]
[1733517397320,6.42431762,239.42,239.35,6.42431762]
[1733517397914,6.42431762,239.42,239.33,6.42431762]
[1733517399123,2.085,239.37,239.33,6.42431762]
[1733517399519,6.42431762,239.42,239.33,6.42431762]
[1733517399823,2.0851,239.36,239.33,6.42431762]
[1733517401317,2.0848,239.38,239.33,6.42431762]
[1733517401514,6.42431762,239.4,239.33,6.42431762]
[1733517402422,2.085,239.36,239.33,6.42431762]
[1733517406421,2.0851,239.35,239.33,6.42431762]
[1733517407824,1.04783,239.48,239.33,6.42431762]
[1733517408020,1.04783,239.48,239.4,6.42431762]
[1733517408021,6.42431762,239.47,239.4,6.42431762]
[1733517408623,1.04783,239.48,239.42,6.42431762]
[1733517411424,2.0843,239.45,239.42,6.42431762]
[1733517411632,1.04783,239.48,239.4,8.50891762]
[1733517411929,6.42431762,239.47,239.4,8.50891762]
[1733517412527,2.0844,239.44,239.4,8.50891762]
[1733517412726,6.42431762,239.45,239.38,2.16]
[1733517412931,6.42431762,239.43,239.35,8.58431762]
[1733517413125,2.0847,239.39,239.35,8.58431762]
[1733517414128,2.0847,239.39,239.35,10.66931762]
[1733517415527,2.085,239.36,239.32,3.4702]
[1733517415734,6.42431762,239.39,239.3,8.58431762]
[1733517415933,6.42431762,239.41,239.34,6.42431762]
[1733517416134,2.085,239.36,239.34,6.42431762]
[1733517416732,2.0849,239.38,239.34,6.42431762]
[1733517417134,6.42431762,239.43,239.34,6.42431762]
[1733517417535,2.0849,239.37,239.34,6.42431762]
[1733517420137,2.16,239.45,239.36,6.42431762]
[1733517420338,6.42431762,239.47,239.39,6.42431762]
[1733517420937,6.42431762,239.43,239.33,2.16]
[1733517421139,6.42431762,239.41,239.35,6.42431762]
[1733517421739,2.0848,239.38,239.35,6.42431762]
[1733517422342,2.0846,239.41,239.35,6.42431762]
[1733517422637,6.42431762,239.45,239.37,6.42431762]
[1733517423737,2.0847,239.4,239.37,6.42431762]
[1733517424344,2.0847,239.39,239.35,6.42431762]
[1733517426646,2.0847,239.39,239.35,8.50941762]
[1733517428146,2.0847,239.39,239.37,6.42431762]
[1733517429147,2.0847,239.39,239.35,8.50941762]
[1733517429739,6.42431762,239.43,239.35,6.42431762]
[1733517430043,6.42431762,239.41,239.33,6.42431762]
[1733517430446,2.0847,239.4,239.36,2.085]
[1733517430646,2.16,239.43,239.36,2.085]
[1733517430842,6.42431762,239.44,239.36,2.085]
[1733517431539,6.42431762,239.44,239.37,8.50921762]
[1733517432746,2.16,239.47,239.39,6.42431762]
[1733517432949,2.0844,239.44,239.41,6.42431762]
[1733517434242,2.0844,239.44,239.39,8.58431762]
[1733517434646,2.0844,239.44,239.4,2.0846]
[1733517435252,6.42431762,239.47,239.4,2.0846]
[1733517435545,2.0844,239.43,239.4,2.0846]
[1733517435747,6.42431762,239.45,239.39,2.16]
[1733517435940,2.0847,239.4,239.35,6.42431762]
[1733517436145,6.42431762,239.41,239.34,2.16]
[1733517436350,6.42431762,239.41,239.26,4.67319208]
[1733517436351,6.42431762,239.36,239.22,0.50159208]
[1733517436645,2.0855,239.31,239.27,6.42431762]
[1733517437052,2.0855,239.31,239.27,8.51011762]
[1733517438145,2.0855,239.31,239.29,6.42431762]
[1733517438349,2.0852,239.34,239.29,6.42431762]
[1733517438647,2.0852,239.34,239.29,8.50981762]
[1733517438850,6.42431762,239.38,239.29,8.50981762]
[1733517439044,6.42431762,239.36,239.29,6.42431762]
[1733517439649,2.0854,239.32,239.29,6.42431762]
[1733517440351,2.0854,239.31,239.27,6.42431762]
[1733517441153,2.0854,239.31,239.27,8.51011762]
[1733517441654,2.0854,239.32,239.27,6.42431762]
[1733517442149,6.42431762,239.32,239.24,1.3009]
[1733517442354,6.42431762,239.34,239.25,6.42431762]
[1733517442556,6.42431762,239.34,239.27,6.42431762]
[1733517442855,2.0856,239.3,239.27,6.42431762]
[1733517443048,6.42431762,239.34,239.25,8.51021762]
[1733517443747,2.0856,239.3,239.25,8.51021762]
[1733517445356,6.42431762,239.34,239.25,8.51021762]
[1733517445654,2.0857,239.29,239.25,8.51021762]
[1733517447649,3.9966,239.4,239.28,2.0857]
[1733517447650,2.0854,239.32,239.28,2.0857]
[1733517447854,2.0854,239.32,239.3,6.42431762]
[1733517450655,2.0854,239.32,239.29,2.0856]
[1733517451655,2.0854,239.32,239.3,6.42431762]
[1733517453966,2.0852,239.34,239.3,6.42431762]
[1733517454670,2.0853,239.33,239.3,6.42431762]
[1733517455862,2.6234,239.4,239.32,6.42431762]
[1733517456263,2.6234,239.4,239.34,6.42431762]
[1733517456462,2.0847,239.39,239.34,8.50951762]
[1733517457363,2.0849,239.38,239.34,8.50951762]
[1733517457965,2.0849,239.38,239.34,6.42431762]
[1733517458167,2.6234,239.4,239.34,6.42431762]
[1733517458168,2.0849,239.37,239.34,6.42431762]
[1733517458968,2.0849,239.37,239.33,2.0853]
[1733517460168,2.0849,239.37,239.32,8.58431762]
[1733517460362,2.6234,239.4,239.32,8.58431762]
[1733517460762,2.6234,239.4,239.32,2.16]
[1733517461073,6.42431762,239.39,239.32,8.58431762]
[1733517461365,6.42431762,239.37,239.3,6.42431762]
[1733517461566,6.42431762,239.37,239.28,3.4989]
[1733517461567,6.42431762,239.37,239.28,9.92321762]
[1733517461766,6.42431762,239.37,239.28,8.58431762]
[1733517462573,2.0852,239.34,239.28,10.67001762]
[1733517465274,2.0852,239.34,239.3,6.42431762]
[1733517469671,2.085,239.36,239.32,6.42431762]
[1733517472579,2.085,239.36,239.3,8.50981762]
[1733517473180,2.085,239.36,239.32,6.42431762]
[1733517480489,9.04771762,239.4,239.32,6.42431762]
[1733517480683,2.0851,239.35,239.32,6.42431762]
[1733517481781,9.04771762,239.4,239.29,2.16]
[1733517481782,6.42431762,239.38,239.29,2.16]
[1733517482589,2.0853,239.33,239.29,2.16]
[1733517482886,6.42431762,239.38,239.29,2.16]
[1733517483300,2.0855,239.31,239.29,2.16]
[1733517485290,2.0855,239.31,239.27,8.51011762]
[1733517485486,6.42431762,239.34,239.26,2.16]
[1733517485693,6.42431762,239.3,239.22,3.5145]
[1733517485887,6.42431762,239.3,239.23,1.04388889]
[1733517486087,2.086,239.25,239.24,1.04388889]
[1733517486486,2.086,239.25,239.22,9.93881762]
[1733517486688,2.086,239.25,239.23,1.04389149]
[1733517486885,2.086,239.25,239.24,1.04389149]
[1733517488283,6.42431762,239.3,239.24,1.04389149]
[1733517488484,6.42431762,239.3,239.24,2.086]